fUSD/lending_fUSD_20240115
["ID","MTS","AMOUNT","RATE_DAILY","PERIOD"]
[311713823,1705349451087,-500.0,0.00032876,2]
[311713824,1705349451097,-567.38,0.00032876,2]
[311713825,1705349451107,-500.0,0.00032876,2]
[311713826,1705349451116,-819.24,0.00032876,2]
[311713827,1705349451126,-972.21,0.00032876,2]
[311713828,1705349451136,-564.24,0.00032876,2]
[311713829,1705349451145,-1285.78,0.00032876,2]
[311713830,1705349451155,-662.97,0.00032876,2]
[311713831,1705349451164,-500.0,0.00032876,2]
[311713832,1705349451173,-964.27,0.00032876,2]
[311713833,1705349451182,-500.0,0.00032876,2]
[311713834,1705349451192,-201.62256085,0.00032876,2]
[311713835,1705349451201,-500.0,0.00032876,2]
[311713836,1705349451211,-500.0,0.00032876,2]
[311713837,1705349451221,-746.32,0.00032876,2]
[311713838,1705349451230,-500.0,0.00032876,2]
[311713839,1705349451243,-852.03,0.00032876,2]
[311713840,1705349451252,-500.0,0.00032876,2]
[311713841,1705349451262,-500.0,0.00032876,2]
[311713842,1705349451271,-500.0,0.00032876,2]
[311713843,1705349451281,-500.0,0.00032876,2]
[311713844,1705349451291,-680.73,0.00032876,2]
[311713845,1705349451300,-500.0,0.00032876,2]
[311713846,1705349451310,-989.68,0.00032876,2]
[311713847,1705349451320,-500.0,0.00032876,2]
[311713848,1705349451329,-500.0,0.00032876,2]
[311713849,1705349451338,-874.17,0.00032876,2]
[311713850,1705349451348,-1141.01,0.00032876,2]
[311713851,1705349451358,-1795.53,0.00032876,2]
[311713852,1705349451367,-500.0,0.00032876,2]
[311713853,1705349451376,-500.0,0.00032876,2]
[311713854,1705349451386,-502.54024004,0.00032876,2]
[311713855,1705349451396,-500.0,0.00032876,2]
[311713856,1705349451405,-500.0,0.00032876,2]
[311713857,1705349451415,-322.29,0.00032876,2]
[311713858,1705349451425,-655.43,0.00032876,2]
[311713859,1705349451434,-500.0,0.00032876,2]
[311713860,1705349451444,-500.0,0.00032876,2]
[311713861,1705349451453,-500.0,0.00032876,2]
[311713862,1705349451462,-1294.77,0.00032876,2]
[311713863,1705349451472,-500.0,0.00032876,2]
[311713864,1705349451482,-865.74,0.00032876,2]
[311713865,1705349451494,-508.03576897,0.00032876,2]
[311713866,1705349451505,-682.96,0.00032876,2]
[311713867,1705349451515,-500.0,0.00032876,2]
[311713868,1705349451526,-500.0,0.00032876,2]
[311713869,1705349451536,-500.0,0.00032876,2]
[311713870,1705349451546,-500.0,0.00032876,2]
[311713871,1705349451556,-601.05,0.00032876,2]
[311713872,1705349451566,-500.0,0.00032876,2]
[311713873,1705349451576,-504.2,0.00032876,2]
[311713874,1705349451586,-806.42,0.00032876,2]
[311713875,1705349451596,-500.0,0.00032876,2]
[311713876,1705349451606,-979.9,0.00032876,2]
[311713877,1705349451616,-500.0,0.00032876,2]
[311713878,1705349451752,-500.0,0.00032876,2]
[311713879,1705349451762,-774.6,0.00032876,2]
[311713880,1705349451772,-500.0,0.00032876,2]
[311713881,1705349451782,-785.92,0.00032876,2]
[311713882,1705349451792,-500.0,0.00032876,2]
[311713883,1705349451802,-500.0,0.00032876,2]
[311713884,1705349451811,-959.56,0.00032876,2]
[311713885,1705349451821,-1090.65,0.00032876,2]
[311713886,1705349451830,-409.87410395,0.00032876,2]
[311713887,1705349451839,-967.11,0.00032876,2]
[311713888,1705349451849,-863.64,0.00032876,2]
[311713889,1705349451859,-1058.75,0.00032876,2]
[311713890,1705349451868,-500.0,0.00032876,2]
[311713891,1705349451877,-500.0,0.00032876,2]
[311713892,1705349451886,-516.01,0.00032876,2]
[311713893,1705349451896,-764.22,0.00032876,2]
[311713894,1705349451906,-634.1,0.00032876,2]
[311713895,1705349451915,-1134.11,0.00032876,2]
[311713896,1705349451924,-500.0,0.00032876,2]
[311713897,1705349451933,-500.0,0.00032876,2]
[311713898,1705349451943,-888.47,0.00032876,2]
[311713899,1705349451956,-546.56580288,0.00032876,2]
[311713900,1705349451965,-500.0,0.00032876,2]
[311713901,1705349451974,-500.0,0.00032876,2]
[311713902,1705349451983,-500.0,0.00032876,2]
[311713903,1705349451994,-500.0,0.00032876,2]
[311713904,1705349452002,-500.0,0.00032876,2]
[311713905,1705349452011,-500.0,0.00032876,2]
[311713906,1705349452021,-1038.03,0.00032876,2]
[311713907,1705349452031,-500.0,0.00032876,2]
[311713908,1705349452043,-500.0,0.00032876,2]
[311713909,1705349452052,-500.0,0.00032876,2]
[311713910,1705349452063,-805.34,0.00032876,2]
[311713911,1705349452073,-500.0,0.00032876,2]
[311713912,1705349452083,-839.59,0.00032876,2]
[311713913,1705349452092,-500.0,0.00032876,2]
[311713914,1705349452101,-500.0,0.00032876,2]
[311713915,1705349452111,-1434.72,0.00032876,2]
[311713916,1705349452121,-500.0,0.00032876,2]
[311713917,1705349452131,-773.03,0.00032876,2]
[311713918,1705349452140,-1188.47,0.00032876,2]
[311713919,1705349452150,-649.88,0.00032876,2]
[311713920,1705349452159,-500.0,0.00032876,2]
[311713921,1705349452168,-500.0,0.00032876,2]
[311713922,1705349452178,-500.0,0.00032876,2]
[311713923,1705349452187,-500.0,0.00032876,2]
[311713924,1705349452197,-500.0,0.00032876,2]
[311713925,1705349452207,-1091.2,0.00032876,2]
[311713926,1705349452216,-500.0,0.00032876,2]
[311713927,1705349452225,-500.0,0.00032876,2]
[311713928,1705349452234,-504.06839089,0.00032876,2]
[311713929,1705349452245,-500.0,0.00032876,2]
[311713930,1705349452254,-500.0,0.00032876,2]
[311713931,1705349452265,-500.0,0.00032876,2]
[311713932,1705349452274,-500.0,0.00032876,2]
[311713933,1705349452283,-665.04,0.00032876,2]
[311713934,1705349452293,-500.0,0.00032876,2]
[311713935,1705349452302,-500.0,0.00032876,2]
[311713936,1705349452311,-500.0,0.00032876,2]
[311713937,1705349452322,-764.36,0.00032876,2]
[311713938,1705349452332,-555.27118206,0.00032876,2]
[311713939,1705349452342,-500.0,0.00032876,2]
[311713940,1705349452352,-500.0,0.00032876,2]
[311713941,1705349452361,-500.0,0.00032876,2]
[311713942,1705349452372,-864.2,0.00032876,2]
[311713943,1705349452382,-500.0,0.00032876,2]
[311713944,1705349452392,-787.87,0.00032876,2]
[311713945,1705349452402,-778.98,0.00032876,2]
[311713946,1705349452412,-500.0,0.00032876,2]
[311713947,1705349452423,-969.55,0.00032876,2]
[311713948,1705349452433,-164.12238173,0.00032876,2]
[311713949,1705349452443,-512.78,0.00032876,2]
[311713950,1705349452452,-500.0,0.00032876,2]
[311713951,1705349452462,-755.89,0.00032876,2]
[311713952,1705349452471,-501.97363134,0.00032876,2]
[311713953,1705349452481,-500.0,0.00032876,2]
[311713954,1705349452491,-602.83,0.00032876,2]
[311713955,1705349452500,-500.0,0.00032876,2]
[311713956,1705349452510,-500.0,0.00032876,2]
[311713957,1705349452519,-816.5,0.00032876,2]
[311713958,1705349452529,-727.91,0.00032876,2]
[311713959,1705349452540,-503.49,0.00032876,2]
[311713960,1705349452549,-500.0,0.00032876,2]
[311713961,1705349452559,-943.6,0.00032876,2]
[311713962,1705349452568,-813.14,0.00032876,2]
[311713963,1705349452578,-500.0,0.00032876,2]
[311713964,1705349452588,-500.0,0.00032876,2]
[311713965,1705349452598,-500.0,0.00032876,2]
[311713966,1705349452607,-598.53850111,0.00032876,2]
[311713967,1705349452616,-500.0,0.00032876,2]
[311713968,1705349452628,-500.0,0.00032876,2]
[311713969,1705349452637,-500.0,0.00032876,2]
[311713970,1705349452647,-663.72,0.00032876,2]
[311713971,1705349452656,-566.79,0.00032876,2]
[311713972,1705349452667,-500.0,0.00032876,2]
[311713973,1705349452676,-504.02958817,0.00032876,2]
[311713974,1705349452687,-695.87,0.00032876,2]
[311713975,1705349452697,-592.68,0.00032876,2]
[311713976,1705349452707,-500.0,0.00032876,2]
[311713977,1705349452717,-500.0,0.00032876,2]
[311713978,1705349452727,-1335.12,0.00032876,2]
[311713979,1705349452738,-636.45,0.00032876,2]
[311713980,1705349452751,-500.0,0.00032876,2]
[311713981,1705349452761,-509.55493732,0.00032876,2]
[311713982,1705349452770,-1029.26,0.00032876,2]
[311713983,1705349452780,-500.0,0.00032876,2]
[311713984,1705349452789,-500.0,0.00032876,2]
[311713985,1705349452799,-500.0,0.00032876,2]
[311713986,1705349452809,-500.0,0.00032876,2]
[311713987,1705349452820,-564.12830792,0.00032876,2]
[311713988,1705349452830,-564.64,0.00032876,2]
[311713989,1705349452840,-500.0,0.00032876,2]
[311713990,1705349452851,-500.0,0.00032876,2]
[311713991,1705349452862,-1080.72,0.00032876,2]
[311713992,1705349452872,-500.0,0.00032876,2]
[311713993,1705349452882,-500.0,0.00032876,2]
[311713994,1705349452891,-678.1,0.00032876,2]
[311713995,1705349452900,-500.0,0.00032876,2]
[311713996,1705349452910,-500.0,0.00032876,2]
[311713997,1705349452919,-500.0,0.00032876,2]
[311713998,1705349452928,-500.0,0.00032876,2]
[311713999,1705349452938,-919.46,0.00032876,2]
[311714000,1705349452951,-500.0,0.00032876,2]
[311714001,1705349452962,-894.65,0.00032876,2]
[311714002,1705349452972,-500.0,0.00032876,2]
[311714003,1705349452983,-500.0,0.00032876,2]
[311714004,1705349452993,-500.0,0.00032876,2]
[311714005,1705349453002,-500.0,0.00032876,2]
[311714006,1705349453012,-500.0,0.00032876,2]
[311714007,1705349453021,-500.0,0.00032876,2]
[311714008,1705349453030,-500.0,0.00032876,2]
[311714009,1705349453041,-500.0,0.00032876,2]
[311714010,1705349453050,-503.45481898,0.00032876,2]
[311714011,1705349453060,-584.67,0.00032876,2]
[311714012,1705349453069,-500.0,0.00032876,2]
[311714013,1705349453078,-1000.0,0.00032876,7]
[311714014,1705349453088,-500.0,0.00032876,2]
[311714015,1705349453098,-500.0,0.00032876,2]
[311714016,1705349453109,-1547.81,0.00032876,2]
[311714017,1705349453119,-709.4,0.00032876,2]
[311714018,1705349453130,-500.0,0.00032876,2]
[311714019,1705349453139,-16000.0,0.00032876,3]
[311714020,1705349453150,-500.0,0.00032876,2]
[311714021,1705349453161,-508.72,0.00032876,2]
[311714022,1705349453171,-1909.69,0.00032876,2]
[311714023,1705349453181,-500.0,0.00032876,2]
[311714024,1705349453191,-500.0,0.00032876,2]
[311714025,1705349453202,-500.0,0.00032876,2]
[311714026,1705349453212,-500.0,0.00032876,2]
[311714027,1705349453222,-500.0,0.00032876,2]
[311714028,1705349453233,-500.0,0.00032876,2]
[311714029,1705349453243,-500.0,0.00032876,2]
[311714030,1705349453253,-744.91,0.00032876,2]
[311714031,1705349453264,-586.82,0.00032876,2]
[311714032,1705349453275,-500.0,0.00032876,2]
[311714033,1705349453286,-589.97,0.00032876,2]
[311714034,1705349453295,-558.04,0.00032876,2]
[311714035,1705349453305,-1007.11,0.00032876,2]
[311714036,1705349453314,-1008.18,0.00032876,2]
[311714037,1705349453323,-500.0,0.00032876,2]
[311714038,1705349453333,-500.0,0.00032876,2]
[311714039,1705349453342,-1000.0,0.00032876,2]
[311714040,1705349453351,-950.78,0.00032876,2]
[311714041,1705349453361,-655.8,0.00032876,2]
[311714042,1705349453371,-500.0,0.00032876,2]
[311714043,1705349453380,-500.0,0.00032876,2]
[311714044,1705349453389,-500.0,0.00032876,2]
[311714045,1705349453399,-509.26331807,0.00032876,2]
[311714046,1705349453408,-1211.91,0.00032876,2]
[311714047,1705349453418,-500.0,0.00032876,2]
[311714048,1705349453427,-500.0,0.00032876,2]
[311714049,1705349453436,-835.57,0.00032876,2]
[311714050,1705349453445,-500.0,0.00032876,2]
[311714051,1705349453455,-500.0,0.00032876,2]
[311714052,1705349453464,-559.78,0.00032876,2]
[311714053,1705349453473,-535.21288131,0.00032876,2]
[311714054,1705349453483,-500.0,0.00032876,2]
[311714055,1705349453493,-500.0,0.00032876,2]
[311714056,1705349453502,-500.0,0.00032876,2]
[311714057,1705349453511,-500.0,0.00032876,2]
[311714058,1705349453520,-1236.79,0.00032876,2]
[311714059,1705349453530,-500.0,0.00032876,2]
[311714060,1705349453539,-500.0,0.00032876,2]
[311714061,1705349453548,-766.74,0.00032876,2]
[311714062,1705349453558,-758.43,0.00032876,2]
[311714063,1705349453567,-526.82286384,0.00032876,2]
[311714064,1705349453576,-500.0,0.00032876,2]
[311714065,1705349453585,-536.48,0.00032876,2]
[311714066,1705349453595,-1610.7,0.00032876,2]
[311714067,1705349453604,-834.23,0.00032876,2]
[311714068,1705349453613,-500.0,0.00032876,2]
[311714069,1705349453623,-541.33918073,0.00032876,2]
[311714070,1705349453633,-500.0,0.00032876,2]
[311714071,1705349453642,-500.0,0.00032876,30]
[311714072,1705349453651,-600.17,0.00032876,2]
[311714073,1705349453661,-962.5,0.00032876,2]
[311714074,1705349453670,-500.0,0.00032876,2]
[311714075,1705349453680,-677.97,0.00032876,2]
[311714076,1705349453689,-576.78,0.00032876,2]
[311714077,1705349453698,-838.43,0.00032876,2]
[311714078,1705349453708,-500.0,0.00032876,2]
[311714079,1705349453717,-879.96,0.00032876,2]
[311714080,1705349453726,-500.0,0.00032876,2]
[311714081,1705349453736,-1033.22,0.00032876,2]
[311714082,1705349453746,-728.75,0.00032876,2]
[311714083,1705349453755,-855.44,0.00032876,2]
[311714084,1705349453768,-500.0,0.00032876,2]
[311714085,1705349453777,-500.0,0.00032876,2]
[311714086,1705349453786,-630.91,0.00032876,2]
[311714087,1705349453795,-538.05,0.00032876,2]
[311714088,1705349453804,-500.0,0.00032876,2]
[311714089,1705349453813,-500.0,0.00032876,2]
[311714090,1705349453821,-500.0,0.00032876,2]
[311714091,1705349453830,-500.0,0.00032876,2]
[311714092,1705349453840,-500.0,0.00032876,2]
[311714093,1705349453849,-500.0,0.00032876,2]
[311714094,1705349453858,-500.0,0.00032876,2]
[311714095,1705349454184,-500.0,0.00032876,2]
[311714096,1705349454211,-500.0,0.00032876,2]
[311714097,1705349454220,-500.0,0.00032876,2]
[311714098,1705349454230,-502.85162299,0.00032876,2]
[311714099,1705349454240,-500.0,0.00032876,2]
[311714100,1705349454251,-743.48,0.00032876,2]
[311714101,1705349454262,-500.0,0.00032876,2]
[311714102,1705349454272,-500.0,0.00032876,2]
[311714103,1705349454281,-500.0,0.00032876,2]
[311714104,1705349454290,-500.0,0.00032876,2]
[311714105,1705349454299,-500.0,0.00032876,2]
[311714106,1705349454308,-1391.14,0.00032876,2]
[311714107,1705349454317,-548.88,0.00032876,2]
[311714108,1705349454327,-1863.92,0.00032876,2]
[311714109,1705349454336,-678.36,0.00032876,2]
[311714110,1705349454345,-954.36,0.00032876,2]
[311714111,1705349454355,-864.14,0.00032876,2]
[311714112,1705349454365,-993.36,0.00032876,2]
[311714113,1705349454374,-513.42,0.00032876,2]
[311714114,1705349454383,-500.0,0.00032876,2]
[311714115,1705349454393,-500.0,0.00032876,2]
[311714116,1705349454402,-1285.41,0.00032876,2]
[311714117,1705349454411,-500.0,0.00032876,2]
[311714118,1705349454420,-500.0,0.00032876,2]
[311714119,1705349454430,-506.85533043,0.00032876,2]
[311714120,1705349454440,-1840.83,0.00032876,2]
[311714121,1705349454449,-500.0,0.00032876,2]
[311714122,1705349454458,-503.55516268,0.00032876,2]
[311714123,1705349454468,-1694.35,0.00032876,2]
[311714124,1705349454477,-500.0,0.00032876,2]
[311714125,1705349454487,-500.0,0.00032876,2]
[311714126,1705349454498,-502.66472847,0.00032876,2]
[311714127,1705349454507,-665.24,0.00032876,2]
[311714128,1705349454517,-500.0,0.00032876,2]
[311714129,1705349454526,-967.39,0.00032876,2]
[311714130,1705349454536,-535.91,0.00032876,2]
[311714131,1705349454545,-500.0,0.00032876,2]
[311714132,1705349454555,-603.18,0.00032876,2]
[311714133,1705349454564,-1411.23,0.00032876,2]
[311714134,1705349454574,-715.39,0.00032876,2]
[311714135,1705349454584,-775.95,0.00032876,2]
[311714136,1705349454594,-1014.69,0.00032876,2]
[311714137,1705349454603,-500.0,0.00032876,2]
[311714138,1705349454613,-500.0,0.00032876,2]
[311714139,1705349454622,-944.35,0.00032876,2]
[311714140,1705349454631,-500.0,0.00032876,2]
[311714141,1705349454641,-500.0,0.00032876,2]
[311714142,1705349454651,-859.81,0.00032876,2]
[311714143,1705349454660,-522.03,0.00032876,2]
[311714144,1705349454670,-500.0,0.00032876,2]
[311714145,1705349454680,-558.27,0.00032876,2]
[311714146,1705349454690,-2000.0,0.00032876,2]
[311714147,1705349454699,-500.0,0.00032876,2]
[311714148,1705349454709,-1952.9734471,0.00032876,2]
[311714149,1705349454719,-500.0,0.00032876,2]
[311714150,1705349454728,-500.0,0.00032876,2]
[311714151,1705349454738,-588.99564539,0.00032876,2]
[311714152,1705349454749,-1193.03,0.00032876,2]
[311714153,1705349454758,-500.0,0.00032876,2]
[311714154,1705349454767,-500.0,0.00032876,2]
[311714155,1705349454777,-511.53279678,0.00032876,2]
[311714156,1705349454786,-500.0,0.00032876,2]
[311714157,1705349454796,-500.0,0.00032876,2]
[311714158,1705349454805,-500.0,0.00032876,2]
[311714159,1705349454814,-500.0,0.00032876,2]
[311714160,1705349454823,-500.0,0.00032876,2]
[311714161,1705349454832,-500.0,0.00032876,2]
[311714162,1705349454842,-1639.14,0.00032876,2]
[311714163,1705349454852,-777.62,0.00032876,2]
[311714164,1705349454861,-502.55815283,0.00032876,2]
[311714165,1705349454870,-800.68,0.00032876,2]
[311714166,1705349454880,-500.0,0.00032876,2]
[311714167,1705349454890,-500.0,0.00032876,2]
[311714168,1705349454899,-500.0,0.00032876,2]
[311714169,1705349454908,-500.0,0.00032876,2]
[311714170,1705349454918,-500.0,0.00032876,2]
[311714171,1705349454927,-1584.29,0.00032876,2]
[311714172,1705349454936,-500.0,0.00032876,2]
[311714173,1705349454947,-634.64,0.00032876,2]
[311714174,1705349454958,-500.0,0.00032876,2]
[311714175,1705349454967,-500.0,0.00032876,2]
[311714176,1705349454976,-500.0,0.00032876,2]
[311714177,1705349454985,-1834.51,0.00032876,2]
[311714178,1705349454995,-928.1,0.00032876,2]
[311714179,1705349455005,-731.65,0.00032876,2]
[311714180,1705349455015,-500.0,0.00032876,2]
[311714181,1705349455024,-899.71,0.00032876,2]
[311714182,1705349455034,-505.65694953,0.00032876,2]
[311714183,1705349455044,-1147.3,0.00032876,2]
[311714184,1705349455053,-511.89715798,0.00032876,2]
[311714185,1705349455062,-500.0,0.00032876,2]
[311714186,1705349455072,-500.0,0.00032876,2]
[311714187,1705349455081,-636.72,0.00032876,2]
[311714188,1705349455091,-501.43849056,0.00032876,2]
[311714189,1705349455100,-500.0,0.00032876,2]
[311714190,1705349455110,-500.0,0.00032876,2]
[311714191,1705349455120,-500.0,0.00032876,2]
[311714192,1705349455129,-500.0,0.00032876,2]
[311714193,1705349455139,-500.0,0.00032876,2]
[311714194,1705349455149,-1209.48,0.00032876,2]
[311714195,1705349455158,-500.0,0.00032876,7]
[311714196,1705349455168,-500.0,0.00032876,2]
[311714197,1705349455177,-500.0,0.00032876,2]
[311714198,1705349455187,-500.0,0.00032876,2]
[311714199,1705349455197,-500.0,0.00032876,2]
[311714200,1705349455206,-500.0,0.00032876,2]
[311714201,1705349455216,-565.53,0.00032876,2]
[311714202,1705349455225,-2000.0,0.00032876,2]
[311714203,1705349455235,-638.49,0.00032876,2]
[311714204,1705349455245,-1439.96,0.00032876,2]
[311714205,1705349455255,-500.0,0.00032876,2]
[311714206,1705349455264,-590.6,0.00032876,2]
[311714207,1705349455274,-500.0,0.00032876,2]
[311714208,1705349455284,-585.02,0.00032876,2]
[311714209,1705349455293,-200.0,0.00032876,2]
[311714210,1705349455303,-500.0,0.00032876,2]
[311714211,1705349455312,-500.0,0.00032876,2]
[311714212,1705349455321,-500.0,0.00032876,2]
[311714213,1705349455331,-500.0,0.00032876,2]
[311714214,1705349455341,-500.0,0.00032876,2]
[311714215,1705349455350,-1542.45,0.00032876,2]
[311714216,1705349455360,-500.0,0.00032876,2]
[311714217,1705349455369,-500.0,0.00032876,2]
[311714218,1705349455378,-500.0,0.00032876,2]
[311714219,1705349455388,-500.0,0.00032876,2]
[311714220,1705349455398,-500.0,0.00032876,2]
[311714221,1705349455407,-500.0,0.00032876,2]
[311714222,1705349455417,-500.0,0.00032876,2]
[311714223,1705349455426,-500.0,0.00032876,2]
[311714224,1705349455436,-582.22,0.00032876,2]
[311714225,1705349455445,-829.64,0.00032876,2]
[311714226,1705349455455,-500.0,0.00032876,2]
[311714227,1705349455465,-500.0,0.00032876,2]
[311714228,1705349455475,-500.0,0.00032876,2]
[311714229,1705349455485,-500.0,0.00032876,2]
[311714230,1705349455495,-500.0,0.00032876,2]
[311714231,1705349455505,-996.88,0.00032876,2]
[311714232,1705349455514,-500.0,0.00032876,2]
[311714233,1705349455525,-632.03,0.00032876,2]
[311714234,1705349455535,-902.37,0.00032876,2]
[311714235,1705349455545,-500.0,0.00032876,2]
[311714236,1705349455555,-500.0,0.00032876,2]
[311714237,1705349455565,-500.0,0.00032876,2]
[311714238,1705349455575,-500.0,0.00032876,2]
[311714239,1705349455586,-500.0,0.00032876,2]
[311714240,1705349455595,-1769.06,0.00032876,2]
[311714241,1705349455605,-500.0,0.00032876,2]
[311714242,1705349455615,-710.43,0.00032876,2]
[311714243,1705349455625,-500.0,0.00032876,2]
[311714244,1705349455635,-500.0,0.00032876,2]
[311714245,1705349455644,-894.75,0.00032876,2]
[311714246,1705349455656,-979.8,0.00032876,2]
[311714247,1705349455666,-500.0,0.00032876,2]
[311714248,1705349455676,-1024.95,0.00032876,2]
[311714249,1705349455686,-648.23,0.00032876,2]
[311714250,1705349455696,-500.0,0.00032876,2]
[311714251,1705349455706,-520.2,0.00032876,2]
[311714252,1705349455717,-502.62589597,0.00032876,2]
[311714253,1705349455727,-500.0,0.00032876,2]
[311714254,1705349455737,-501.50422481,0.00032876,2]
[311714255,1705349455749,-500.0,0.00032876,2]
[311714256,1705349455760,-1120.91,0.00032876,2]
[311714257,1705349455770,-500.0,0.00032876,2]
[311714258,1705349455780,-16000.0,0.00032876,3]
[311714259,1705349455791,-500.0,0.00032876,3]
[311714260,1705349455800,-500.0,0.00032876,2]
[311714261,1705349455811,-523.26746958,0.00032876,2]
[311714262,1705349455821,-1958.3,0.00032876,2]
[311714263,1705349455832,-500.0,0.00032876,2]
[311714264,1705349455842,-655.01,0.00032876,2]
[311714265,1705349455852,-500.0,0.00032876,2]
[311714266,1705349455862,-1194.0,0.00032876,2]
[311714267,1705349455873,-500.0,0.00032876,2]
[311714268,1705349455883,-500.0,0.00032876,2]
[311714269,1705349455893,-500.0,0.00032876,2]
[311714270,1705349455903,-1612.4,0.00032876,2]
[311714271,1705349455912,-500.0,0.00032876,2]
[311714272,1705349455922,-500.0,0.00032876,2]
[311714273,1705349455932,-500.0,0.00032876,2]
[311714274,1705349455943,-500.0,0.00032876,2]
[311714275,1705349455957,-775.8,0.00032876,2]
[311714276,1705349455967,-500.0,0.00032876,2]
[311714277,1705349455977,-500.0,0.00032876,2]
[311714278,1705349455987,-500.0,0.00032876,2]
[311714279,1705349455996,-531.2,0.00032876,2]
[311714280,1705349456006,-696.69,0.00032876,2]
[311714281,1705349456016,-878.98,0.00032876,2]
[311714282,1705349456025,-500.0,0.00032876,2]
[311714283,1705349456037,-882.91,0.00032876,2]
[311714284,1705349456048,-2149.41,0.00032876,2]
[311714285,1705349456057,-500.0,0.00032876,2]
[311714286,1705349456067,-897.17,0.00032876,2]
[311714287,1705349456076,-500.0,0.00032876,2]
[311714288,1705349456086,-3339.01,0.00032876,2]
[311714289,1705349456096,-1930.54,0.00032876,2]
[311714290,1705349456106,-1485.36,0.00032876,2]
[311714291,1705349456116,-500.0,0.00032876,2]
[311714292,1705349456126,-500.0,0.00032876,2]
[311714293,1705349456136,-500.0,0.00032876,2]
[311714294,1705349456146,-1098.76,0.00032876,2]
[311714295,1705349456155,-500.0,0.00032876,2]
[311714296,1705349456165,-500.0,0.00032876,2]
[311714297,1705349456175,-500.0,0.00032876,2]
[311714298,1705349456185,-500.0,0.00032876,2]
[311714299,1705349456195,-500.0,0.00032876,2]
[311714300,1705349456206,-836.43,0.00032876,2]
[311714301,1705349456216,-984.84,0.00032876,2]
[311714302,1705349456226,-500.0,0.00032876,2]
[311714303,1705349456235,-500.0,0.00032876,2]
[311714304,1705349456246,-1411.24,0.00032876,2]
[311714305,1705349456256,-622.36,0.00032876,2]
[311714306,1705349456266,-1153.72,0.00032876,2]
[311714307,1705349456276,-500.0,0.00032876,2]
[311714308,1705349456287,-1104.28,0.00032876,2]
[311714309,1705349456297,-500.0,0.00032876,2]
[311714310,1705349456307,-500.0,0.00032876,2]
[311714311,1705349456316,-500.0,0.00032876,2]
[311714312,1705349456325,-500.0,0.00032876,2]
[311714313,1705349456335,-500.0,0.00032876,2]
[311714314,1705349456345,-941.86,0.00032876,2]
[311714315,1705349456354,-500.0,0.00032876,2]
[311714316,1705349456364,-595.55,0.00032876,2]
[311714317,1705349456373,-500.0,0.00032876,2]
[311714318,1705349456383,-673.34,0.00032876,2]
[311714319,1705349456393,-500.0,0.00032876,2]
[311714320,1705349456405,-500.0,0.00032876,2]
[311714321,1705349456415,-500.0,0.00032876,2]
[311714322,1705349456426,-510.76,0.00032876,2]